bitfinex-derivatives/quotes_SOLF0:USTF0_20241016
["timestamp","ask_amount","ask_price","bid_price","bid_amount"]
[1729087122931,15.55,154.58,154.48,15.55]
[1729087123122,15.55,154.58,154.49,6.36]
[1729087123322,15.55,154.58,154.5,3.2362]
[1729087123829,3.2358,154.53,154.5,3.2362]
[1729087124831,3.2358,154.53,154.49,6.36]
[1729087125043,3.2358,154.53,154.5,3.2362]
[1729087125444,3.2354,154.55,154.51,15.55]
[1729087125648,3.2354,154.55,154.52,3.2359]
[1729087125846,2.8594,154.61,154.51,15.55]
[1729087126042,2.8594,154.61,154.52,15.55]
[1729087126352,2.8594,154.61,154.53,6.36]
[1729087126547,3.235,154.57,154.53,6.36]
[1729087127241,3.235,154.57,154.54,3.2354]
[1729087128552,3.2351,154.56,154.54,3.2354]
[1729087129052,2.8594,154.61,154.53,6.36]
[1729087129351,3.2355,154.54,154.53,6.36]
[1729087130056,3.2361,154.52,154.49,6.34]
[1729087130350,3.2361,154.52,154.49,9.5764]
[1729087130656,15.55,154.58,154.49,6.34]
[1729087130657,3.2364,154.5,154.49,6.34]
[1729087130851,15.55,154.56,154.49,6.34]
[1729087131154,1.3238,154.55,154.49,6.34]
[1729087131547,2.7962,154.54,154.49,6.34]
[1729087131748,3.2363,154.51,154.49,6.34]
[1729087131951,15.55,154.53,154.46,6.34]
[1729087132349,3.2368,154.48,154.46,9.5771]
[1729087133052,3.2367,154.49,154.46,9.5771]
[1729087133751,3.2368,154.48,154.46,6.34]
[1729087134443,3.2366,154.49,154.46,9.5772]
[1729087135250,2.7962,154.54,154.46,9.5772]
[1729087135557,3.2368,154.48,154.46,9.5772]
[1729087135751,3.2368,154.48,154.46,6.34]
[1729087135948,3.237,154.47,154.46,6.34]
[1729087136253,2.7962,154.54,154.46,6.34]
[1729087136646,3.2368,154.48,154.46,9.5771]
[1729087136840,2.7962,154.54,154.46,6.34]
[1729087137043,2.7962,154.54,154.46,21.89]
[1729087137859,3.2362,154.51,154.48,3.2367]
[1729087138347,3.2364,154.5,154.48,3.2367]
[1729087139352,3.2368,154.48,154.46,6.34]
[1729087139655,18.3462,154.54,154.46,6.34]
[1729087140157,24.6862,154.54,154.46,6.34]
[1729087140456,15.55,154.52,154.43,6.34]
[1729087140758,3.2373,154.46,154.43,6.34]
[1729087141450,3.2373,154.46,154.44,3.2376]
[1729087141758,3.2373,154.46,154.42,15.55]
[1729087141946,3.2371,154.47,154.44,3.2376]
[1729087142146,3.2371,154.47,154.43,6.34]
[1729087142849,3.2371,154.47,154.44,3.2376]
[1729087143055,3.2369,154.48,154.44,15.55]
[1729087143555,24.6862,154.54,154.44,15.55]
[1729087143750,3.2373,154.46,154.44,15.55]
[1729087144657,24.6862,154.54,154.43,6.34]
[1729087144658,3.2375,154.45,154.43,6.34]
[1729087145051,15.55,154.47,154.36,6.36]
[1729087145253,3.2384,154.41,154.38,3.2389]
[1729087145953,3.2384,154.41,154.38,18.7889]
[1729087147048,4.236,154.46,154.38,18.7889]
[1729087147352,3.2381,154.42,154.38,18.7889]
[1729087147555,4.236,154.46,154.4,15.55]
[1729087148152,4.236,154.46,154.41,3.2381]
[1729087148358,3.2376,154.45,154.4,15.55]
[1729087148758,4.236,154.46,154.41,3.2381]
[1729087149559,3.2376,154.44,154.41,3.2381]
[1729087150368,4.236,154.46,154.42,15.55]
[1729087150660,2.8821,154.46,154.42,15.55]
[1729087151067,2.8821,154.46,154.44,3.2374]
[1729087151263,1.3774,154.5,154.44,15.55]
[1729087152057,3.237,154.47,154.44,18.7875]
[1729087152463,3.2373,154.46,154.43,3.2377]
[1729087152859,1.3774,154.5,154.4,15.55]
[1729087153167,1.3774,154.5,154.38,6.36]
[1729087153168,1.3889,154.45,154.38,6.36]
[1729087153363,2.8056,154.44,154.37,21.91]
[1729087153965,3.2383,154.41,154.37,21.91]
[1729087154361,2.8056,154.44,154.29,6.4816]
[1729087154362,2.8056,154.44,154.36,21.91]
[1729087154971,3.2386,154.4,154.37,3.2391]
[1729087156473,3.2384,154.41,154.38,3.2388]
[1729087157471,3.2381,154.42,154.39,3.2385]
[1729087158066,3.2379,154.43,154.41,15.55]
[1729087158468,1.3889,154.45,154.41,15.55]
[1729087158667,4.6264,154.45,154.42,3.2379]
[1729087160168,3.2376,154.44,154.42,3.2379]
[1729087160557,3.2376,154.44,154.41,18.7882]
[1729087160760,1.3889,154.45,154.41,18.7882]
[1729087160960,3.2378,154.44,154.41,18.7882]
[1729087161164,1.3889,154.45,154.41,15.55]
[1729087161369,3.2379,154.43,154.41,15.55]
[1729087161868,1.3889,154.45,154.41,15.55]
[1729087162767,1.3889,154.45,154.38,15.55]
[1729087163071,3.2377,154.44,154.4,15.55]
[1729087163270,3.2377,154.44,154.41,3.2381]
[1729087163669,3.2379,154.43,154.4,15.55]
[1729087163869,3.2379,154.43,154.4,18.7884]
[1729087164263,1.3889,154.45,154.38,15.55]
[1729087164571,1.4127,154.44,154.38,15.55]
[1729087165063,3.2386,154.4,154.38,15.55]
[1729087166361,3.2386,154.4,154.38,18.7889]
[1729087167767,3.2386,154.4,154.38,3.2389]
[1729087168064,3.2382,154.42,154.4,3.2384]
[1729087168270,1.3882,154.43,154.41,15.55]
[1729087168570,4.6262,154.43,154.4,3.2384]
[1729087169068,1.3882,154.43,154.4,3.2384]
[1729087169868,4.6261,154.43,154.39,15.55]
[1729087170059,1.4073,154.47,154.42,15.55]
[1729087170466,3.2374,154.45,154.42,15.55]
[1729087170762,3.2374,154.45,154.42,18.788]
[1729087170962,1.4073,154.47,154.42,15.55]
[1729087171167,1.4073,154.47,154.36,3.27503562]
[1729087171168,1.4073,154.47,154.45,3.2372]
[1729087171577,3.2376,154.44,154.41,25.1282]
[1729087171973,1.4073,154.47,154.41,21.89]
[1729087172179,3.2376,154.45,154.42,3.238]
[1729087172563,1.4073,154.47,154.41,21.89]
[1729087173074,1.4073,154.47,154.42,3.238]
[1729087173669,3.2375,154.45,154.42,3.238]
[1729087177172,3.2373,154.46,154.42,3.238]
[1729087177372,1.4073,154.47,154.39,15.55]
[1729087177580,4.5770209,154.47,154.39,15.55]
[1729087177779,1.4073,154.47,154.39,15.55]
[1729087178079,3.2379,154.43,154.4,3.2383]
[1729087178692,3.2381,154.42,154.39,18.7885]
[1729087179583,3.2381,154.42,154.4,3.2384]
[1729087180280,4.65569733,154.47,154.41,3.2381]
[1729087180579,4.65569733,154.47,154.39,15.55]
[1729087180882,3.2379,154.43,154.4,3.2383]
[1729087181271,3.2379,154.43,154.39,15.55]
[1729087181471,3.2379,154.43,154.41,3.2382]
[1729087182184,3.2379,154.43,154.4,3.2384]
[1729087183079,3.2381,154.42,154.4,3.2384]
[1729087184988,3.2381,154.42,154.38,6.34]
[1729087185187,3.2384,154.41,154.38,3.2387]
[1729087186486,3.2384,154.41,154.38,3.2388]
[1729087187484,7.7473,154.47,154.39,15.55]
[1729087187691,1.4073,154.47,154.42,15.55]
[1729087188189,3.2373,154.46,154.43,3.2377]
[1729087189496,3.2377,154.44,154.42,3.2379]
[1729087189694,1.4073,154.47,154.4,21.89]
[1729087190297,3.2378,154.43,154.4,21.89]
[1729087190600,3.2378,154.43,154.4,15.55]
[1729087190899,3.2382,154.42,154.38,21.89]
[1729087191591,3.2382,154.42,154.39,3.2385]
[1729087193102,3.2379,154.43,154.4,3.2383]
[1729087194303,1.4465,154.45,154.4,3.2383]
[1729087194602,3.2381,154.42,154.4,3.2383]
[1729087194910,3.2379,154.43,154.4,3.2383]
[1729087199301,1.4465,154.45,154.38,21.89]
[1729087199496,3.2377,154.44,154.38,21.89]
[1729087199798,1.4073,154.47,154.4,15.55]
[1729087200004,3.2374,154.46,154.43,3.2377]
[1729087200202,1.4073,154.47,154.4,15.55]
[1729087200394,1.3306,154.52,154.45,15.55]
[1729087201502,1.3306,154.52,154.46,15.55]
[1729087201697,69.94,154.65,154.51,15.55]
[1729087201900,2.7019,154.6,154.54,15.55]
[1729087202095,3.2355,154.55,154.52,15.55]
[1729087202296,2.7019,154.6,154.52,15.55]
[1729087202498,15.55,154.59,154.48,15.55]
[1729087202699,15.55,154.56,154.48,15.55]
[1729087203003,1.3684,154.55,154.46,15.55]
[1729087203205,16.9184,154.55,154.46,15.55]
[1729087203503,6.34,154.54,154.46,15.55]
[1729087203708,3.2364,154.51,154.47,3.2369]
[1729087203896,6.34,154.54,154.47,3.2369]
[1729087204102,2.7244,154.53,154.46,15.55]
[1729087204302,3.2362,154.51,154.47,3.2369]
[1729087205306,3.2362,154.51,154.46,15.55]
[1729087205501,2.7244,154.53,154.48,15.55]
[1729087206907,21.89,154.58,154.5,15.55]
[1729087207308,15.55,154.58,154.5,15.55]
[1729087207708,3.2356,154.54,154.48,6.34]
[1729087207908,3.25480735,154.55,154.48,6.34]
[1729087208307,3.2361,154.52,154.49,3.2365]
[1729087208506,3.25480735,154.55,154.48,6.34]
[1729087208709,15.55,154.56,154.48,6.34]
[1729087209005,3.2363,154.51,154.48,9.5767]
[1729087209306,3.2363,154.51,154.48,6.34]
[1729087209708,3.2363,154.51,154.48,9.5767]
[1729087210209,2.7575,154.54,154.48,6.34]
[1729087210509,6.34,154.58,154.5,15.55]
[1729087210706,2.7173,154.58,154.5,15.55]
[1729087210913,3.2358,154.53,154.5,18.7863]
[1729087211115,2.7173,154.58,154.5,15.55]
[1729087211412,3.2352,154.56,154.53,3.2356]
[1729087211615,2.7173,154.58,154.53,3.2356]
[1729087211808,3.2353,154.55,154.5,3.2362]
[1729087212011,18.84073095,154.57,154.48,21.89]
[1729087212202,18.84073095,154.57,154.38,69.94]
[1729087212203,15.55,154.53,154.44,15.55]
[1729087212404,15.55,154.53,154.45,3.2373]
[1729087212603,15.55,154.51,154.43,6.34]
[1729087212814,1.4366,154.5,154.43,6.34]
[1729087213111,3.2374,154.46,154.43,9.5777]
[1729087213310,15.55,154.49,154.43,6.34]
[1729087213612,16.9431,154.49,154.43,6.34]
[1729087213917,16.9431,154.49,154.4,6.34]
[1729087214119,15.55,154.47,154.38,69.94]
[1729087214414,15.55,154.45,154.36,6.34]
[1729087214806,3.2383,154.41,154.38,3.2388]
[1729087215014,15.55,154.45,154.36,6.34]
[1729087215212,3.2383,154.41,154.38,3.2387]
[1729087215413,3.2383,154.41,154.36,6.34]
[1729087216406,18.83314228,154.45,154.38,3.2389]
[1729087216611,15.55,154.47,154.37,15.55]
[1729087216811,16.9431,154.49,154.39,15.55]
[1729087217107,23.2831,154.49,154.42,3.2379]
[1729087217308,3.2374,154.46,154.42,3.2379]
[1729087217612,1.3931,154.49,154.43,3.2377]
[1729087218311,1.3931,154.49,154.41,15.55]
[1729087218518,1.3931,154.49,154.43,3.2377]
[1729087218818,3.2371,154.47,154.41,15.55]
[1729087219419,1.3931,154.49,154.41,15.55]
[1729087220214,1.3931,154.49,154.4,6.34]
[1729087220615,15.55,154.47,154.4,6.34]
[1729087220816,15.55,154.46,154.37,15.55]
[1729087221114,15.55,154.46,154.36,6.32]
[1729087221310,15.55,154.46,154.37,15.55]
[1729087221506,6.32,154.47,154.37,15.55]
[1729087221707,102.7513,154.5,154.43,15.55]
[1729087221906,100.0,154.5,154.45,15.55]
[1729087222516,100.0,154.5,154.46,3.2372]
[1729087222917,103.2365,154.5,154.45,18.7873]
[1729087224109,3.2366,154.49,154.45,18.7873]
[1729087224316,100.0,154.5,154.45,15.55]
[1729087224620,100.0,154.5,154.44,15.55]
[1729087224823,3.2369,154.48,154.44,15.55]
[1729087225115,100.0,154.5,154.47,15.55]
[1729087225323,100.0,154.5,154.49,15.55]
[1729087225623,1.4046,154.57,154.49,15.55]
[1729087225624,1.3736,154.58,154.49,15.55]
[1729087225830,15.55,154.62,154.47,6.32]
[1729087225831,15.55,154.62,154.54,15.55]
[1729087226016,15.55,154.6,154.51,6.32]
[1729087226519,3.2355,154.54,154.51,6.32]
[1729087228424,3.2358,154.53,154.51,6.32]
[1729087229021,3.2359,154.52,154.51,6.32]
[1729087229821,3.2358,154.53,154.51,6.32]
[1729087230423,3.2359,154.52,154.51,6.32]
[1729087230814,1.3285,154.57,154.51,6.32]
[1729087231127,3.2358,154.53,154.51,6.32]
[1729087231321,1.3285,154.57,154.45,15.55]
[1729087231322,15.55,154.56,154.45,15.55]
[1729087231626,15.55,154.56,154.46,6.32]
[1729087231627,3.2367,154.49,154.46,6.32]
[1729087232016,3.2367,154.49,154.46,6.22]
[1729087232214,3.2365,154.5,154.46,6.22]
[1729087232518,21.55915156,154.56,154.46,6.22]
[1729087232718,3.2366,154.49,154.46,6.12]
[1729087233024,21.55915156,154.56,154.46,6.02]
[1729087233223,15.55,154.54,154.43,15.55]
[1729087233422,15.55,154.52,154.43,6.32]
[1729087233622,15.55,154.52,154.41,15.55]
[1729087233923,3.2376,154.44,154.42,6.32]
[1729087234227,3.1376,154.44,154.42,6.32]
[1729087234526,15.55,154.46,154.37,15.55]
[1729087234728,15.45,154.46,154.38,6.32]
[1729087234924,15.45,154.46,154.38,9.5587]
[1729087235126,3.2381,154.42,154.38,6.32]
[1729087235530,3.238,154.43,154.38,9.5587]
[1729087235830,3.238,154.43,154.38,6.32]
[1729087236021,29.0467,154.49,154.38,6.32]
[1729087236325,3.2375,154.45,154.4,3.2384]
[1729087236629,29.0467,154.49,154.38,6.32]
[1729087236825,3.2378,154.44,154.39,3.2386]
[1729087237131,29.0467,154.49,154.39,3.2386]
[1729087237325,3.238,154.43,154.38,9.5588]
[1729087237730,3.28142634,154.48,154.36,24.87]
[1729087237921,3.2384,154.41,154.37,9.5591]
[1729087238229,24.87,154.46,154.32,94.77]
[1729087238533,24.87,154.41,154.3,6.32]
[1729087238727,4.0905,154.4,154.23,69.92]
[1729087238924,24.87,154.39,154.26,24.87]
[1729087239129,24.87,154.39,154.27,3.241]
[1729087239527,24.87,154.34,154.23,73.1619]
[1729087239830,24.87,154.34,154.25,6.32]
[1729087240228,24.87,154.34,154.26,3.2412]
[1729087240432,3.2407,154.3,154.25,6.32]
[1729087240634,24.87,154.34,154.22,3.2422]
[1729087240833,24.87,154.31,154.21,6.32]
[1729087241135,2.7539,154.3,154.21,6.32]
[1729087241322,4.142,154.3,154.21,6.32]
[1729087241521,4.142,154.3,154.21,9.5624]
[1729087241726,4.142,154.3,154.21,3.2424]
[1729087241938,3.2412,154.27,154.2,3.2426]
[1729087242139,4.142,154.3,154.2,3.2426]
[1729087242433,3.2407,154.3,154.24,3.2416]
[1729087242642,31.19,154.34,154.23,6.32]
[1729087243224,3.2407,154.3,154.24,3.2416]
[1729087243533,24.87,154.32,154.23,6.32]
[1729087244436,3.2413,154.27,154.23,6.32]
[1729087244842,6.32,154.3,154.21,3.2423]
[1729087245339,6.32,154.3,154.2,6.32]
[1729087245630,3.2413,154.27,154.22,3.2422]
[1729087248032,3.2413,154.27,154.23,3.2419]
[1729087248743,3.241,154.28,154.23,3.2419]
[1729087249132,3.2405,154.31,154.21,24.87]
[1729087249333,6.32,154.32,154.21,24.87]
[1729087249834,3.2409,154.29,154.24,3.2416]
[1729087250034,24.87,154.34,154.21,24.87]
[1729087250237,4.1225,154.35,154.24,24.87]
[1729087250441,4.1225,154.35,154.25,6.32]
[1729087250838,3.2398,154.34,154.3,3.2404]
[1729087251132,4.1225,154.35,154.25,6.32]
[1729087251342,3.24,154.33,154.29,3.2406]
[1729087251536,4.1225,154.35,154.25,6.32]
[1729087252040,3.2399,154.34,154.29,3.2406]
[1729087252349,3.2399,154.34,154.25,6.32]
[1729087252738,3.2399,154.34,154.27,24.87]
[1729087253234,4.1225,154.35,154.29,3.2407]
[1729087253445,4.1225,154.35,154.25,6.32]
[1729087253739,4.1225,154.35,154.29,3.2406]
[1729087253939,4.1225,154.35,154.25,6.32]
[1729087255040,3.24,154.33,154.25,6.32]
[1729087255341,4.1225,154.35,154.25,6.32]
[1729087255543,3.2405,154.31,154.25,6.32]
[1729087256041,3.2405,154.31,154.28,3.241]
[1729087256439,3.2405,154.31,154.26,6.32]
[1729087256834,3.2406,154.3,154.27,3.2411]
[1729087257940,3.2404,154.31,154.26,6.32]
[1729087258135,3.2404,154.31,154.28,3.241]
[1729087258537,4.1225,154.35,154.28,3.2408]
[1729087258735,4.1225,154.35,154.26,6.32]
[1729087259142,3.2401,154.33,154.29,3.2406]
[1729087259440,4.1225,154.35,154.26,9.50478824]
[1729087259944,2.787,154.35,154.27,24.87]
[1729087260145,6.0266,154.35,154.29,3.2407]
[1729087260337,1.3621,154.42,154.3,31.19]
[1729087260636,3.239,154.38,154.34,3.2396]
[1729087260831,3.239,154.38,154.31,6.32]
[1729087261038,4.0978,154.42,154.31,6.32]
[1729087261440,28.9678,154.42,154.31,6.32]
[1729087261642,24.87,154.37,154.25,6.32]
[1729087261844,3.2403,154.32,154.28,3.241]
[1729087262146,34.50541154,154.37,154.26,6.32]
[1729087262339,3.2398,154.34,154.28,3.2409]
[1729087262535,34.50541154,154.37,154.26,6.32]
[1729087262845,6.32,154.37,154.26,6.32]
[1729087263043,9.60861235,154.37,154.26,6.32]
[1729087263543,9.60861235,154.37,154.29,3.2406]
[1729087264246,24.87,154.39,154.26,9.52467949]
[1729087264439,31.19,154.39,154.26,9.52467949]
[1729087264640,24.87,154.41,154.28,24.87]
[1729087264945,24.87,154.41,154.34,3.2395]
[1729087265143,3.2392,154.37,154.34,3.2395]
[1729087265543,24.87,154.41,154.34,3.2395]
[1729087265742,3.2393,154.37,154.34,3.2395]
[1729087266250,24.87,154.41,154.32,6.32]
[1729087266545,10.4178,154.42,154.29,6.32]
[1729087266546,24.87,154.39,154.29,6.32]
[1729087266940,24.87,154.37,154.29,9.5607]
[1729087267443,3.2403,154.32,154.29,9.5607]
[1729087267848,3.2403,154.32,154.3,3.2405]
[1729087268950,101.08246739,154.45,154.31,24.87]
[1729087269162,101.08246739,154.45,154.34,24.87]
[1729087269448,3.238,154.43,154.35,6.32]
[1729087269654,24.87,154.46,154.35,6.32]
[1729087269844,6.32,154.47,154.35,6.32]
[1729087270047,3.2378,154.43,154.35,6.32]
[1729087270650,6.32,154.47,154.39,3.2385]
[1729087270848,6.32,154.47,154.36,24.87]
[1729087270849,3.2375,154.45,154.36,24.87]
[1729087271242,3.2375,154.45,154.41,3.2381]
[1729087272054,6.32,154.47,154.41,3.2381]
[1729087272250,24.87,154.49,154.39,6.32]
[1729087272456,4.2042,154.5,154.39,31.19]
[1729087272849,4.2042,154.5,154.43,3.2377]
[1729087273050,4.2042,154.5,154.39,31.19]
[1729087273455,3.2373,154.46,154.42,3.2379]
[1729087273655,3.2373,154.46,154.39,31.19]
[1729087273843,4.2042,154.5,154.39,31.19]
[1729087274749,4.2042,154.5,154.39,6.32]
[1729087274948,24.87,154.49,154.39,6.32]
[1729087275250,24.87,154.47,154.37,6.32]
[1729087275457,3.27850806,154.46,154.37,6.32]
[1729087275660,3.2378,154.44,154.38,3.2387]
[1729087275958,35.3942,154.5,154.37,31.19]
[1729087276951,3.2373,154.46,154.42,3.2379]
[1729087278255,3.237,154.47,154.4,3.2383]
[1729087278556,10.5242,154.5,154.41,6.3]
[1729087278759,4.2042,154.5,154.41,6.3]
[1729087278963,3.2369,154.48,154.4,24.87]
[1729087279163,24.87,154.47,154.33,6.3]
[1729087279460,3.2379,154.43,154.39,3.2385]
[1729087279655,24.87,154.47,154.39,3.2385]
[1729087279857,24.87,154.47,154.33,31.17]
[1729087280063,3.2383,154.41,154.37,3.2391]
[1729087280268,24.87,154.47,154.33,31.17]
[1729087281365,3.2383,154.41,154.37,3.239]
[1729087282368,24.87,154.47,154.37,3.239]
[1729087282979,3.2384,154.41,154.37,3.239]
[1729087283171,24.87,154.47,154.37,3.239]
[1729087283673,24.87,154.47,154.33,31.17]
[1729087283674,3.2384,154.41,154.33,31.17]
[1729087284463,3.2384,154.41,154.37,3.2389]
[1729087284667,3.2384,154.41,154.37,9.5389]
[1729087285272,24.87,154.44,154.37,6.3]
[1729087285476,4.2376,154.43,154.34,6.3]
[1729087285671,24.87,154.42,154.34,6.3]
[1729087287069,3.2394,154.36,154.34,6.3]
[1729087287384,24.87,154.42,154.34,6.3]
[1729087288378,3.2395,154.35,154.34,6.3]
[1729087288677,3.2395,154.35,154.32,3.2401]
[1729087289385,24.87,154.39,154.31,6.3]
[1729087289679,28.04395529,154.39,154.31,6.3]
[1729087289882,3.2397,154.35,154.32,3.2401]
[1729087290279,28.04395529,154.39,154.31,6.3]
[1729087290482,3.2394,154.36,154.33,3.2398]
[1729087292286,3.2389,154.38,154.35,3.2394]
[1729087292585,31.17,154.42,154.31,6.3]
[1729087292787,3.2394,154.36,154.33,3.2399]
[1729087293882,24.87,154.42,154.31,6.3]
[1729087294186,4.2376,154.43,154.33,24.87]
[1729087294592,3.2382,154.42,154.38,3.2388]
[1729087294888,4.2376,154.43,154.38,3.2388]
[1729087295083,3.2384,154.41,154.38,3.2388]
[1729087295289,4.2376,154.43,154.38,3.2388]
[1729087295487,4.2376,154.43,154.36,6.3]
[1729087295676,3.2391,154.37,154.36,6.3]
[1729087295882,24.87,154.42,154.3,24.87]
[1729087296082,24.87,154.42,154.33,9.5398]
[1729087296282,3.2394,154.36,154.33,9.5398]
[1729087296583,3.2394,154.36,154.33,6.3]
[1729087296891,24.87,154.42,154.33,6.3]
[1729087297095,24.87,154.4,154.33,6.3]
[1729087297388,3.2399,154.34,154.3,6.3]
[1729087298389,3.2399,154.34,154.31,3.2402]
[1729087298689,3.24,154.33,154.29,6.3]
[1729087298891,24.87,154.37,154.3,3.2405]
[1729087299078,4.0355,154.36,154.27,76.28]
[1729087299282,3.2402,154.32,154.27,76.28]
[1729087299586,3.2402,154.32,154.29,3.2406]
[1729087300579,4.0355,154.36,154.12,16.49894018]
[1729087300784,3.241,154.28,154.25,3.2416]
[1729087300990,24.87,154.35,154.24,6.3]
[1729087301287,3.2404,154.31,154.28,3.2409]
[1729087302089,3.2404,154.31,154.27,3.2411]
[1729087302289,3.2411,154.28,154.24,6.3]
[1729087302691,24.87,154.35,154.24,3.2417]
[1729087302993,24.87,154.32,154.23,6.3]
[1729087303195,31.17,154.32,154.23,6.3]
[1729087303496,3.2416,154.26,154.23,6.3]
[1729087303788,31.17,154.32,154.23,6.3]
[1729087303981,31.17,154.32,154.23,9.542]
[1729087304884,3.2415,154.26,154.23,9.542]
[1729087305287,31.17,154.32,154.23,6.3]
[1729087306094,3.2411,154.28,154.2,6.3]
[1729087306292,31.17,154.32,154.2,6.3]
[1729087306491,31.17,154.32,154.25,3.2416]
[1729087306890,31.17,154.32,154.2,6.3]
[1729087307093,31.17,154.32,154.24,3.2418]
[1729087308197,3.2413,154.27,154.24,3.2418]
[1729087308795,3.2415,154.26,154.23,3.242]
[1729087309002,31.17,154.32,154.2,6.3]
[1729087309694,3.2417,154.25,154.22,3.2421]
[1729087309893,31.17,154.32,154.2,6.3]
[1729087310585,6.3,154.32,154.22,24.87]
[1729087310786,100.0,154.35,154.24,24.87]
[1729087310991,100.0,154.35,154.22,6.4845]
[1729087310992,100.0,154.35,154.29,3.2407]
[1729087311187,100.0,154.35,154.25,31.17]
[1729087311597,100.0,154.35,154.29,3.2406]
[1729087311898,100.0,154.35,154.25,31.17]
[1729087312100,3.2404,154.31,154.28,3.2409]
[1729087312595,3.2402,154.32,154.28,3.2409]
[1729087312899,3.2402,154.32,154.29,3.2407]
[1729087313389,100.0,154.35,154.27,6.3]
[1729087313589,3.2405,154.31,154.28,3.2409]
[1729087314095,100.0,154.35,154.26,6.3]
[1729087314296,3.2401,154.33,154.26,6.3]
[1729087314695,103.2395,154.35,154.32,3.2401]
[1729087314896,103.2395,154.35,154.26,9.49053289]
[1729087315095,100.0,154.35,154.26,9.49053289]
[1729087315501,100.0,154.35,154.27,24.87]
[1729087315801,100.0,154.35,154.3,24.87]
[1729087315998,100.0,154.35,154.34,3.2397]
[1729087316188,100.0,154.35,154.34,9.5397]
[1729087317006,100.0,154.35,154.34,6.3]
[1729087317691,100.0,154.35,154.34,9.5397]
[1729087319604,1.3979,154.45,154.34,6.3]
[1729087319800,10.67800789,154.72,154.37,24.87]
[1729087319801,2.7785,154.46,154.37,24.87]
[1729087320104,2.7785,154.46,154.38,6.3]
[1729087320407,3.2369,154.48,154.39,24.87]
[1729087320605,3.2369,154.48,154.39,28.07796572]
[1729087320804,4.228,154.5,154.42,3.238]
[1729087321101,3.2373,154.46,154.42,3.238]
[1729087321606,3.2369,154.48,154.39,28.12218662]
[1729087321801,4.228,154.5,154.42,24.87]
[1729087322112,4.228,154.5,154.42,28.10761735]
[1729087322402,2.7785,154.5,154.42,28.10761735]
[1729087323503,3.2357,154.53,154.5,3.2364]
[1729087323898,4.5691,154.55,154.51,3.2361]
[1729087324099,1.3336,154.55,154.51,3.2361]
[1729087324404,1.3336,154.55,154.48,6.3]
[1729087324599,27.5136,154.61,154.5,24.87]
[1729087324904,2.6436,154.61,154.52,24.87]
[1729087325200,27.5136,154.61,154.53,6.3]
[1729087325798,3.2348,154.58,154.53,3.2357]
[1729087326104,27.5136,154.61,154.53,6.3]